fUSD/lending_fUSD_20260221
["ID","MTS","AMOUNT","RATE_DAILY","PERIOD"]
[406277914,1771684249863,-340804.09020072,0.00045015,10]
[406277915,1771684249882,-431.06740971,0.00045015,10]
[406277916,1771684249895,-452910.06889006,0.00045015,10]
[406277920,1771684336864,500.0,0.0001,2]
[406277921,1771684337285,500.0,0.0001,2]
[406277922,1771684337895,500.0,0.0001,2]
[406277923,1771684338314,500.0,0.0001,2]
[406277924,1771684338480,500.0,0.0001,2]
[406277925,1771684338833,500.0,0.0001,2]
[406277926,1771684338964,500.0,0.0001,2]
[406277927,1771684339298,500.0,0.0001,2]
[406277928,1771684339860,500.0,0.0001,2]
[406277929,1771684340352,500.0,0.0001,2]
[406277930,1771684342419,0.01,0.0001,2]
[406277931,1771684342440,499.99,0.0001,2]
[406277932,1771684342919,500.0,0.0001,2]
[406277933,1771684343506,615.60950961,0.0001,2]
[406277934,1771684344160,500.0,0.0001,2]
[406277935,1771684344674,500.0,0.0001,2]
[406277936,1771684345177,500.0,0.0001,2]
[406277937,1771684345654,500.0,0.0001,2]
[406277938,1771684346190,800.0,0.0001,2]
[406277939,1771684347160,500.0,0.0001,2]
[406277940,1771684349758,84.41049039,0.0001,2]
[406277941,1771684349781,415.58950961,0.0001,2]
[406277943,1771684358730,10000.01,0.00013828,2]
[406277944,1771684358765,4584.42049039,0.00013828,2]
[406277945,1771684358788,5000.01,0.00013828,2]
[406277946,1771684367085,-4345.02133627,0.00013828,2]
[406277947,1771684370345,-10000.01,0.00013828,2]
[406277948,1771684372362,-10000.01,0.00013828,2]
[406277949,1771684373524,-10000.01,0.00013828,2]
[406277950,1771684373640,-10000.01,0.00013828,2]
[406277951,1771684373836,-10000.01,0.00013828,2]
[406277952,1771684379191,-10000.01,0.00013828,2]
[406277953,1771684379286,-10000.01,0.00013828,2]
[406277954,1771684379400,-10000.01,0.00013828,2]
[406277955,1771684379546,-10000.01,0.00013828,2]
[406277956,1771684379661,-10000.01,0.00013828,2]
[406277957,1771684386947,780.44,0.00013699,2]
[406277958,1771684388576,2300.0,0.000136,4]
[406277959,1771684390665,1919.57,0.000137,5]
[406277960,1771684390686,2680.43,0.000137,5]
[406277962,1771684392762,2319.58,0.000138,5]
[406277963,1771684392782,4580.42,0.000138,5]
[406277993,1771684433650,419.59,0.00013758,2]
[406277994,1771684433672,1951.739385,0.00013758,2]
[406278000,1771684442145,3048.270615,0.00013808,2]
[406278001,1771684442167,3912.729385,0.00013808,2]
[406278065,1771684452406,254.6162729,0.00013728,2]
[406278066,1771684458552,832.6643421,0.00013728,2]
[406278067,1771684458576,507.50634831,0.00013728,2]
[406278068,1771684499263,4492.50365169,0.00013728,2]
[406278069,1771684499285,5000.01,0.00013728,2]
[406278070,1771684499307,4490.61844831,0.00013728,2]
[406278205,1771684553500,169.71,0.00013228,2]
[406278206,1771684608910,339.68155169,0.00013728,2]
[406278207,1771684608932,3027.42768453,0.00013728,2]
[406278208,1771684640379,500.0,0.0001,2]
[406278209,1771684640877,500.0,0.0001,2]
[406278210,1771684641391,500.0,0.0001,2]
[406278211,1771684641878,472.58231547,0.0001,2]
[406278212,1771684641900,27.41768453,0.0001,2]
[406278213,1771684642357,500.0,0.0001,2]
[406278214,1771684642398,500.0,0.0001,2]
[406278215,1771684642817,500.0,0.0001,2]
[406278216,1771684642948,500.0,0.0001,2]
[406278217,1771684643331,500.0,0.0001,2]
[406278218,1771684643500,500.0,0.0001,2]
[406278219,1771684643796,500.0,0.0001,2]
[406278220,1771684644006,500.0,0.0001,2]
[406278221,1771684644322,500.0,0.0001,2]
[406278222,1771684644725,500.0,0.0001,2]
[406278223,1771684644939,500.0,0.0001,2]
[406278224,1771684644994,800.0,0.0001,2]
[406278225,1771684645324,200.01,0.0001,2]
[406278226,1771684645346,299.99,0.0001,2]
[406278227,1771684645837,500.0,0.0001,2]
[406278228,1771684645874,500.0,0.0001,2]
[406278229,1771684646343,500.0,0.0001,2]
[406278230,1771684646369,500.0,0.0001,2]
[406278231,1771684646791,500.0,0.0001,2]
[406278232,1771684646818,500.0,0.0001,2]
[406278233,1771684646843,500.0,0.0001,2]
[406278234,1771684647293,500.0,0.0001,2]
[406278235,1771684647320,500.0,0.0001,2]
[406278236,1771684647401,200.02,0.0001,2]
[406278237,1771684647423,299.98,0.0001,2]
[406278238,1771684647815,500.0,0.0001,2]
[406278239,1771684647841,500.0,0.0001,2]
[406278240,1771684648294,500.0,0.0001,2]
[406278241,1771684648390,800.0,0.0001,2]
[406278242,1771684648788,500.0,0.0001,2]
[406278243,1771684649032,1900.03,0.00013728,2]
[406278244,1771684649053,5000.01,0.00013728,2]
[406278245,1771684649076,5000.01,0.00013728,2]
[406278246,1771684649274,500.0,0.0001,2]
[406278247,1771684649598,-10000.01,0.00013728,2]
[406278248,1771684649766,500.0,0.0001,2]
[406278249,1771684649800,-10000.01,0.00013728,2]
[406278250,1771684649860,1500.0,0.0001,2]
[406278251,1771684649916,-3029.67378792,0.00013728,2]
[406278252,1771684650214,500.0,0.0001,2]
[406278253,1771684650341,1500.0,0.0001,2]
[406278254,1771684650696,884.39049039,0.0001,2]
[406278255,1771684650806,1056.27193377,0.0001,2]
[406278256,1771684650831,443.72806623,0.0001,2]
[406278257,1771684651300,1500.0,0.0001,2]
[406278258,1771684652014,1500.0,0.0001,2]
[406278259,1771684652454,1500.0,0.0001,2]
[406278260,1771684652712,500.0,0.0001,2]
[406278261,1771684652739,500.0,0.0001,2]
[406278262,1771684652964,1000.01,0.0001,2]
[406278263,1771684652988,499.99,0.0001,2]
[406278264,1771684653197,500.0,0.0001,2]
[406278265,1771684653285,500.0,0.0001,2]
[406278266,1771684653459,1500.0,0.0001,2]
[406278267,1771684653709,500.0,0.0001,2]
[406278268,1771684653782,500.0,0.0001,2]
[406278269,1771684653947,1500.0,0.0001,2]
[406278270,1771684653975,500.0,0.0001,2]
[406278271,1771684654193,500.0,0.0001,2]
[406278272,1771684654279,500.0,0.0001,2]
[406278273,1771684654417,1056.29193377,0.0001,2]
[406278274,1771684654441,443.70806623,0.0001,2]
[406278275,1771684654495,500.0,0.0001,2]
[406278276,1771684654523,500.0,0.0001,2]
[406278277,1771684654671,500.0,0.0001,2]
[406278278,1771684654787,500.0,0.0001,2]
[406278279,1771684654912,1500.0,0.0001,2]
[406278280,1771684655041,500.0,0.0001,2]
[406278281,1771684655069,500.0,0.0001,2]
[406278282,1771684655146,700.0,0.0001,2]
[406278283,1771684655405,1500.0,0.0001,2]
[406278284,1771684655434,500.0,0.0001,2]
[406278285,1771684655656,918.40902476,0.0001,2]
[406278286,1771684655913,500.0,0.0001,2]
[406278287,1771684655943,937.89290901,0.0001,2]
[406278288,1771684655966,562.10709099,0.0001,2]
[406278289,1771684655994,500.0,0.0001,2]
[406278290,1771684656401,2000.0,0.0001,2]
[406278291,1771684656430,500.0,0.0001,2]
[406278292,1771684656929,500.0,0.0001,2]
[406278293,1771684656980,500.0,0.0001,2]
[406278294,1771684657410,500.0,0.0001,2]
[406278295,1771684657911,500.0,0.0001,2]
[406278296,1771684658420,500.0,0.0001,2]
[406278297,1771684658902,500.0,0.0001,2]
[406278298,1771684659381,903.57997268,0.0001,2]
[406278299,1771684660483,500.0,0.0001,2]
[406278300,1771684661135,500.0,0.0001,2]
[406278301,1771684661738,500.0,0.0001,2]
[406278302,1771684662128,500.0,0.0001,2]
[406278303,1771684662679,500.0,0.0001,2]
[406278304,1771684663168,96.43002732,0.0001,2]
[406278305,1771684663190,403.56997268,0.0001,2]
[406278306,1771684663664,500.0,0.0001,2]
[406278307,1771684664130,650.58868683,0.0001,2]
[406278317,1771684715943,-150.0,0.000136,4]
[406278318,1771684771631,-50.0,0.000136,4]
[406278319,1771684771651,-173.0,0.00013627,2]
[406278320,1771684771671,-696.96510435,0.00013628,2]
[406278321,1771684771690,-2244.73949082,0.00013628,2]
[406278322,1771684771710,-1172.6493541,0.00013628,2]
[406278323,1771684771730,-500.0,0.000137,5]
[406278324,1771684771750,-162.64605073,0.00013727,2]
[406278325,1771684772973,-50000.0,0.00045024,54]
[406278326,1771684772996,-1709.2,0.00045024,120]
[406278327,1771684773019,-109446.29505706,0.00045024,60]
[406278328,1771684773042,-500.0,0.00045024,120]
[406278329,1771684773065,-16000.0,0.00045024,120]
[406278330,1771684773091,-250.0,0.00045024,120]
[406278331,1771684773114,-250.0,0.00045024,120]
[406278332,1771684773137,-250.0,0.00045024,120]
[406278333,1771684773160,-250.0,0.00045024,120]
[406278334,1771684773183,-250.0,0.00045024,120]
[406278335,1771684773206,-250.0,0.00045024,120]
[406278336,1771684773230,-250.0,0.00045024,120]
[406278337,1771684773253,-250.0,0.00045024,120]
[406278338,1771684773275,-250.0,0.00045024,120]
[406278339,1771684773300,-45067.25,0.00045024,30]
[406278340,1771684773323,-4999.999999,0.00045024,32]
[406278341,1771684773345,-1003.57408644,0.00045024,30]
[406278342,1771684773368,-50000.0,0.00045024,44]
[406278343,1771684773390,-50000.0,0.00045024,45]
[406278344,1771684773413,-50000.0,0.00045024,46]
[406278345,1771684773436,-50000.0,0.00045024,47]
[406278346,1771684773458,-36861.46886507,0.00045024,30]
[406278347,1771684773481,-1000.0,0.00045024,120]
[406278348,1771684773509,-15600.19810779,0.00045024,30]
[406278349,1771684773532,-3473225.54922897,0.00045024,30]
[406278350,1771684773555,-57370.47462604,0.00045024,30]
[406278351,1771684773578,-5995.34361655,0.00045024,120]
[406278352,1771684773601,-229302.47309497,0.00045024,30]
[406278353,1771684773624,-539440.84423546,0.00045024,30]
[406278354,1771684773646,-50359.86539886,0.00045024,30]
[406278355,1771684773673,-1159867.46368379,0.00045024,30]
[406278356,1771684773772,-162.06969279,0.00013727,2]
[406278357,1771684773796,-500.0,0.00013727,2]
[406278358,1771684773822,-500.0,0.00013727,2]
[406278359,1771684773844,-500.0,0.00013727,2]
[406278360,1771684773868,-548.00505448,0.00013727,2]
[406278361,1771684773890,-500.0,0.00013727,2]
[406278362,1771684773913,-500.0,0.00013727,2]
[406278363,1771684774123,-500.0,0.00013727,2]
[406278364,1771684774147,-500.0,0.00013727,2]
[406278365,1771684774170,-500.0,0.00013727,2]
[406278366,1771684774196,-289.92525273,0.00013727,2]
[406278367,1771684776263,-210.07474727,0.00013727,2]
[406278368,1771684776287,-500.0,0.00013727,2]
[406278369,1771684776315,-500.0,0.00013727,2]
[406278370,1771684776338,-500.0,0.00013727,2]
[406278371,1771684776362,-500.0,0.00013727,2]
[406278372,1771684776386,-500.0,0.00013727,2]
[406278373,1771684776411,-500.0,0.00013727,2]
[406278374,1771684776434,-500.0,0.00013727,2]
[406278375,1771684776458,-500.0,0.00013727,2]
[406278376,1771684776482,-500.0,0.00013727,2]
[406278377,1771684776510,-289.92525273,0.00013727,2]
[406278378,1771684778053,-210.07474727,0.00013727,2]
[406278379,1771684778087,-500.0,0.00013727,2]
[406278380,1771684778115,-500.0,0.00013727,2]
[406278381,1771684778139,-500.0,0.00013727,2]
[406278382,1771684778165,-500.0,0.00013727,2]
[406278383,1771684778189,-500.0,0.00013727,2]
[406278384,1771684778213,-500.0,0.00013727,2]
[406278385,1771684778237,-500.0,0.00013727,2]
[406278386,1771684778262,-500.0,0.00013727,2]
[406278387,1771684778287,-500.0,0.00013727,2]
[406278388,1771684778312,-289.92525273,0.00013727,2]
[406278389,1771684778952,-1660703.86890915,0.00045024,30]
[406278390,1771684778976,-56291.39105057,0.00045024,30]
[406278391,1771684778999,-251477.91765905,0.00045024,30]
[406278392,1771684779023,-23064.54147545,0.00045024,120]
[406278393,1771684779047,-3549.21113674,0.00045024,120]
[406278394,1771684779069,-5100.0,0.00045024,36]
[406278395,1771684779092,-200000.9324159,0.00045024,120]
[406278396,1771684779115,-150.0,0.00045024,30]
[406278397,1771684779139,-1317.65830347,0.00045024,120]
[406278398,1771684779162,-10178.91654259,0.00045024,31]
[406278399,1771684779185,-378.03979407,0.00045024,30]
[406278400,1771684779208,-300.0,0.00045024,30]
[406278401,1771684779232,-300.0,0.00045024,30]
[406278402,1771684779255,-300.0,0.00045024,30]
[406278403,1771684779278,-300.0,0.00045024,30]
[406278404,1771684779304,-300.0,0.00045024,30]
[406278405,1771684779327,-300.0,0.00045024,30]
[406278406,1771684779350,-300.0,0.00045024,30]
[406278407,1771684779372,-300.0,0.00045024,30]
[406278408,1771684779398,-300.0,0.00045024,30]
[406278409,1771684779421,-300.0,0.00045024,30]
[406278410,1771684779443,-300.0,0.00045024,30]
[406278411,1771684779466,-300.0,0.00045024,30]
[406278412,1771684779489,-300.0,0.00045024,30]
[406278413,1771684779512,-300.0,0.00045024,30]
[406278414,1771684779536,-300.0,0.00045024,30]
[406278415,1771684779560,-1000.0,0.00045024,30]
[406278416,1771684779584,-208.0,0.00045024,30]
[406278417,1771684779608,-220.51995499,0.00045024,118]
[406278418,1771684779631,-2355.1550673,0.00045024,120]
[406278419,1771684779654,-285.43444282,0.00045024,120]
[406278420,1771684779676,-267.0,0.00045024,120]
[406278421,1771684779697,-255.93046162,0.00045024,60]
[406278422,1771684779720,-999.999999,0.00045024,120]
[406278423,1771684779742,-221.58035,0.00045024,60]
[406278424,1771684779765,-260.66275353,0.00045024,120]
[406278425,1771684779788,-161.97921129,0.00045024,120]
[406278426,1771684779811,-669.82994193,0.00045024,90]
[406278427,1771684779833,-19362.65149689,0.00045024,120]
[406278428,1771684779856,-615.80125547,0.00045024,120]
[406278429,1771684779879,-2558.76779838,0.00045024,120]
[406278430,1771684779902,-170.4522443,0.00045024,120]
[406278431,1771684779925,-189.12376569,0.00045024,90]
[406278432,1771684779947,-462.71860096,0.00045024,120]
[406278433,1771684779970,-775.13619813,0.00045024,120]
[406278434,1771684779991,-328.20676339,0.00045024,30]
[406278435,1771684780014,-309.26382678,0.00045024,120]
[406278436,1771684780037,-157.84588874,0.00045024,30]
[406278437,1771684780063,-1397.80316268,0.00045024,120]
[406278438,1771684780088,-181.53499856,0.00045024,30]
[406278439,1771684780110,-2231.96438219,0.00045024,30]
[406278440,1771684780133,-505.95589301,0.00045024,120]
[406278441,1771684780156,-1618.91200331,0.00045024,120]
[406278442,1771684780178,-4661.92199667,0.00045024,30]
[406278443,1771684780201,-222.76844641,0.00045024,30]
[406278444,1771684780224,-222.09798246,0.00045024,120]
[406278445,1771684780247,-415.3900445,0.00045024,30]
[406278446,1771684780270,-1020.21975343,0.00045024,30]
[406278447,1771684780293,-441.65681037,0.00045024,30]
[406278448,1771684780316,-422.24266468,0.00045024,120]
[406278449,1771684780339,-3461.93498485,0.00045024,47]
[406278450,1771684780363,-10172.23186781,0.00045024,120]
[406278451,1771684780386,-222.0,0.00045024,120]
[406278452,1771684780409,-1310.54652905,0.00045024,120]
[406278453,1771684780432,-1256.16275585,0.00045024,120]
[406278454,1771684780454,-784.0,0.00045024,120]
[406278455,1771684780477,-5000.0,0.00045024,30]
[406278456,1771684780500,-5000.0,0.00045024,30]
[406278457,1771684780526,-3215.0,0.00045024,30]
[406278458,1771684780551,-837656.48,0.00045024,120]
[406278459,1771684780574,-118736.85553437,0.00045024,60]
[406278460,1771684780598,-2744.52713214,0.00045024,60]
[406278461,1771684780621,-39819.74209047,0.00045024,60]
[406278462,1771684780644,-5908.0,0.00045024,30]
[406278463,1771684780666,-198.62470972,0.00045024,120]
[406278464,1771684780688,-1403.26,0.00045024,60]
[406278465,1771684780710,-177.39328752,0.00045024,120]
[406278466,1771684780732,-167.7,0.00045024,30]
[406278467,1771684780754,-1106.0,0.00045024,30]
[406278468,1771684780776,-1106.0,0.00045024,30]
[406278469,1771684780937,-1108.46334155,0.00045024,30]
[406278470,1771684780960,-1465.88365799,0.00045024,120]
[406278471,1771684780983,-945.10622178,0.00045024,120]
[406278472,1771684781006,-884422.0,0.00045024,60]
[406278473,1771684781030,-50000.0,0.00045024,60]
[406278474,1771684781055,-50000.0,0.00045024,61]
[406278475,1771684781079,-50000.0,0.00045024,62]
[406278476,1771684781104,-50000.0,0.00045024,63]
[406278477,1771684781129,-5100.0,0.00045024,37]
[406278478,1771684781152,-37979.20278367,0.00045024,60]
[406278479,1771684781175,-6100.0,0.00045024,31]
[406278480,1771684781198,-150.0,0.00045024,30]
[406278481,1771684781222,-201.52,0.00045024,30]
[406278482,1771684781245,-150.78,0.00045024,30]
[406278483,1771684781268,-471.92,0.00045024,30]
[406278484,1771684781292,-201.46,0.00045024,30]
[406278485,1771684781315,-150.0,0.00045024,30]
[406278486,1771684781338,-480.48,0.00045024,30]
[406278487,1771684781361,-150.0,0.00045024,30]
[406278488,1771684781386,-150.0,0.00045024,30]
[406278489,1771684781410,-204.48,0.00045024,30]
[406278490,1771684781433,-471.92,0.00045024,30]
[406278491,1771684781457,-150.58,0.00045024,30]
[406278492,1771684781481,-560.62,0.00045024,30]
[406278493,1771684781506,-150.68,0.00045024,30]
[406278494,1771684781530,-181.15,0.00045024,30]
[406278495,1771684781553,-562.74,0.00045024,30]
[406278496,1771684781576,-150.41,0.00045024,30]
[406278497,1771684781599,-250.0,0.00045024,120]
[406278498,1771684781624,-500.0,0.00045024,120]
[406278499,1771684781647,-500.0,0.00045024,120]
[406278500,1771684781670,-250.0,0.00045024,120]
[406278501,1771684781693,-151.0,0.00045024,120]
[406278502,1771684781717,-500.0,0.00045024,120]
[406278503,1771684781741,-500.0,0.00045024,120]
[406278504,1771684781764,-250.0,0.00045024,120]
[406278505,1771684781787,-151.0,0.00045024,120]
[406278506,1771684781809,-500.0,0.00045024,120]
[406278507,1771684781832,-500.0,0.00045024,120]
[406278508,1771684781856,-500.0,0.00045024,120]
[406278509,1771684781879,-250.0,0.00045024,120]
[406278510,1771684781903,-518.5,0.00045024,120]
[406278511,1771684781926,-500.0,0.00045024,120]
[406278512,1771684781952,-250.0,0.00045024,120]
[406278513,1771684781976,-500.0,0.00045024,120]
[406278514,1771684782000,-537.6845,0.00045024,120]
[406278515,1771684782024,-500.0,0.00045024,120]
[406278516,1771684782049,-250.0,0.00045024,120]
[406278517,1771684782072,-500.0,0.00045024,120]
[406278518,1771684782095,-557.5788265,0.00045024,120]
[406278519,1771684782119,-500.0,0.00045024,120]
[406278520,1771684782142,-500.0,0.00045024,120]
[406278521,1771684782165,-578.20924308,0.00045024,120]
[406278522,1771684782188,-500.0,0.00045024,120]
[406278523,1771684782210,-500.0,0.00045024,120]
[406278524,1771684782233,-599.60298507,0.00045024,120]
[406278525,1771684782257,-500.0,0.00045024,120]
[406278526,1771684782281,-500.0,0.00045024,120]
[406278527,1771684782305,-621.78829552,0.00045024,120]
[406278528,1771684782330,-500.0,0.00045024,120]
[406278529,1771684782355,-200.0,0.00045024,60]
[406278530,1771684782378,-500.0,0.00045024,120]
[406278531,1771684782402,-500.0,0.00045024,120]
[406278532,1771684782424,-207.4,0.00045024,60]
[406278533,1771684782446,-500.0,0.00045024,120]
[406278534,1771684782470,-500.0,0.00045024,120]
[406278535,1771684782493,-215.0738,0.00045024,60]
[406278536,1771684782520,-500.0,0.00045024,120]
[406278537,1771684782545,-500.0,0.00045024,120]
[406278538,1771684782569,-223.0315306,0.00045024,60]
[406278539,1771684782595,-181.08010149,0.00045024,120]
[406278540,1771684782620,-500.0,0.00045024,120]
[406278541,1771684782643,-500.0,0.00045024,120]
[406278542,1771684782666,-231.28369723,0.00045024,60]
[406278543,1771684782689,-500.0,0.00045024,120]
[406278544,1771684782712,-231.28369723,0.00045024,60]
[406278545,1771684782735,-500.0,0.00045024,120]
[406278546,1771684782758,-500.0,0.00045024,120]
[406278547,1771684782781,-500.0,0.00045024,120]
[406278548,1771684782805,-500.0,0.00045024,120]
[406278549,1771684782828,-500.0,0.00045024,120]
[406278550,1771684782850,-500.0,0.00045024,120]
[406278551,1771684782873,-500.0,0.00045024,120]
[406278552,1771684782897,-500.0,0.00045024,120]
[406278553,1771684782920,-500.0,0.00045024,120]
[406278554,1771684782944,-500.0,0.00045024,120]
[406278555,1771684782968,-518.5,0.00045024,120]
[406278556,1771684782991,-500.0,0.00045024,120]
[406278557,1771684783014,-500.0,0.00045024,120]
[406278558,1771684783037,-150.0,0.00045024,30]
[406278559,1771684783060,-202.37,0.00045024,30]
[406278560,1771684783083,-562.74,0.00045024,30]
[406278561,1771684783107,-537.6845,0.00045024,120]
[406278562,1771684783130,-570.37,0.00045024,30]
[406278563,1771684783153,-470.97,0.00045024,30]
[406278564,1771684783177,-500.0,0.00045024,120]
[406278565,1771684783201,-150.68,0.00045024,30]
[406278566,1771684783225,-500.0,0.00045024,120]
[406278567,1771684783250,-557.5788265,0.00045024,120]
[406278568,1771684783273,-181.16,0.00045024,30]
[406278569,1771684783297,-500.0,0.00045024,120]
[406278570,1771684783324,-578.20924308,0.00045024,120]
[406278571,1771684783348,-250.0,0.00045024,120]
[406278572,1771684783374,-599.60298507,0.00045024,120]
[406278573,1771684783398,-250.0,0.00045024,120]
[406278574,1771684783539,-621.78829552,0.00045024,120]
[406278575,1771684783565,-644.79446246,0.00045024,120]
[406278576,1771684783591,-668.65185757,0.00045024,120]
[406278577,1771684783616,-693.3919763,0.00045024,120]
[406278578,1771684783641,-719.04747942,0.00045024,120]
[406278579,1771684783667,-745.65223616,0.00045024,120]
[406278580,1771684783691,-151.0,0.00045024,120]
[406278581,1771684783717,-773.2413689,0.00045024,120]
[406278582,1771684783741,-591.97885717,0.00045024,120]
[406278583,1771684783773,-156.587,0.00045024,120]
[406278584,1771684783797,-801.85129955,0.00045024,120]
[406278585,1771684783820,-162.380719,0.00045024,120]
[406278586,1771684783844,-831.51979763,0.00045024,120]
[406278587,1771684783869,-168.3888056,0.00045024,120]
[406278588,1771684783895,-862.28603014,0.00045024,120]
[406278589,1771684783918,-174.61919141,0.00045024,120]
[406278590,1771684783943,-894.19061326,0.00045024,120]
[406278591,1771684783971,-181.08010149,0.00045024,120]
[406278592,1771684783997,-927.27566595,0.00045024,120]
[406278593,1771684784021,-187.78006525,0.00045024,120]
[406278594,1771684784047,-961.58486559,0.00045024,120]
[406278595,1771684784070,-194.72792766,0.00045024,120]
[406278596,1771684784096,-961.58486559,0.00045024,120]
[406278597,1771684784121,-201.93286099,0.00045024,120]
[406278598,1771684784145,-209.40437684,0.00045024,120]
[406278599,1771684784169,-217.15233878,0.00045024,120]
[406278600,1771684784192,-217.15233878,0.00045024,120]
[406278601,1771684784216,-560.62,0.00045024,30]
[406278602,1771684784240,-184.05,0.00045024,30]
[406278603,1771684784264,-520.0,0.00045024,120]
[406278604,1771684784288,-539.24,0.00045024,120]
[406278605,1771684784312,-571.9,0.00045024,30]
[406278606,1771684784336,-559.19188,0.00045024,120]
[406278607,1771684784362,-500.0,0.00045024,120]
[406278608,1771684784386,-579.88197956,0.00045024,120]
[406278609,1771684784410,-601.3376128,0.00045024,120]
[406278610,1771684784434,-500.0,0.00045024,120]
[406278611,1771684784459,-623.58710448,0.00045024,120]
[406278612,1771684784483,-500.0,0.00045024,120]
[406278613,1771684784509,-646.65982734,0.00045024,120]
[406278614,1771684784534,-500.0,0.00045024,120]
[406278615,1771684784557,-500.0,0.00045024,120]
[406278616,1771684784583,-500.0,0.00045024,120]
[406278617,1771684784608,-500.0,0.00045024,120]
[406278618,1771684784632,-500.0,0.00045024,120]
[406278619,1771684784657,-500.0,0.00045024,120]
[406278620,1771684784680,-500.0,0.00045024,120]
[406278621,1771684784704,-500.0,0.00045024,120]
[406278622,1771684784727,-500.0,0.00045024,120]
[406278623,1771684784751,-500.0,0.00045024,120]
[406278624,1771684784775,-500.0,0.00045024,120]
[406278625,1771684784799,-500.0,0.00045024,120]
[406278626,1771684784824,-500.0,0.00045024,120]
[406278627,1771684784849,-500.0,0.00045024,120]
[406278628,1771684784873,-151.0,0.00045024,120]
[406278629,1771684784896,-500.0,0.00045024,120]
[406278630,1771684784921,-151.0,0.00045024,120]
[406278631,1771684784944,-500.0,0.00045024,120]
[406278632,1771684784969,-500.0,0.00045024,120]
[406278633,1771684784992,-500.0,0.00045024,120]
[406278634,1771684785017,-151.0,0.00045024,120]
[406278635,1771684785041,-151.0,0.00045024,120]
[406278636,1771684785064,-151.0,0.00045024,120]
[406278637,1771684785087,-151.0,0.00045024,120]
[406278638,1771684785111,-151.0,0.00045024,120]
[406278639,1771684785135,-151.0,0.00045024,120]
[406278640,1771684785159,-151.0,0.00045024,120]
[406278641,1771684785183,-151.0,0.00045024,120]
[406278642,1771684785206,-151.0,0.00045024,120]
[406278643,1771684785231,-151.0,0.00045024,120]
[406278644,1771684785254,-151.0,0.00045024,120]
[406278645,1771684785277,-151.0,0.00045024,120]
[406278646,1771684785301,-151.0,0.00045024,120]
[406278647,1771684785325,-151.0,0.00045024,120]
[406278648,1771684785349,-151.0,0.00045024,120]
[406278649,1771684785374,-151.0,0.00045024,120]
[406278650,1771684785399,-151.0,0.00045024,120]
[406278651,1771684785423,-151.0,0.00045024,120]
[406278652,1771684785450,-151.0,0.00045024,120]
[406278653,1771684785475,-151.0,0.00045024,120]
[406278654,1771684785499,-151.0,0.00045024,120]
[406278655,1771684785530,-151.0,0.00045024,120]
[406278656,1771684785554,-151.0,0.00045024,120]
[406278657,1771684785579,-151.0,0.00045024,120]
[406278658,1771684785603,-151.0,0.00045024,120]